bitfinex-derivatives/quotes_ETHF0:USTF0_20241102
["timestamp","ask_amount","ask_price","bid_price","bid_amount"]
[1730575345356,1.44635928,2489.6,2489.3,0.453]
[1730575345552,0.28125,2489.5,2489.4,0.28125]
[1730575345749,0.74625,2489.5,2489.4,0.28125]
[1730575345959,2.19260928,2489.5,2489.3,0.73426]
[1730575346679,2.19260928,2489.5,2489.4,0.28126]
[1730575347053,1.91135928,2489.5,2489.4,0.28126]
[1730575347253,0.465,2489.5,2489.4,0.28126]
[1730575347462,1.44635928,2489.6,2489.5,0.28125]
[1730575357162,1.44635928,2489.6,2489.4,0.4407]
[1730575357163,3.2078,2489.9,2489.4,1.88705928]
[1730575357357,3.2078,2489.9,2489.8,0.28121]
[1730575357555,1.44635928,2490.1,2489.6,0.70307]
[1730575357760,1.44635928,2490.1,2490.0,0.28119]
[1730575357962,4.31596,2490.3,2490.2,0.28117]
[1730575357963,1.44635928,2490.3,2490.2,0.28117]
[1730575358167,1.90515928,2490.4,2490.3,0.28116]
[1730575359166,2.18630928,2490.4,2490.2,0.28116]
[1730575359369,1.44635928,2490.3,2490.2,0.28116]
[1730575360565,1.72751928,2490.3,2490.1,0.74157]
[1730575360958,0.4329,2490.2,2490.1,0.74157]
[1730575361161,0.8903,2490.2,2490.1,0.74157]
[1730575361968,1.17147,2490.2,2490.1,0.74157]
[1730575362165,1.17147,2490.2,2490.1,0.28117]
[1730575362364,1.17147,2490.2,2490.0,0.28118]
[1730575362669,1.44635928,2490.1,2490.0,0.28118]
[1730575368371,1.86655928,2490.1,2490.0,0.28118]
[1730575374175,4.49412207,2490.1,2490.0,0.28118]
[1730575374371,1.86655928,2490.1,2490.0,0.28118]
[1730575374675,4.49412207,2490.1,2490.0,0.28118]
[1730575377275,1.86655928,2490.1,2490.0,0.28118]
[1730575377778,4.49214317,2490.1,2490.0,0.28118]
[1730575378271,1.86655928,2490.1,2490.0,0.28118]
[1730575378675,4.49236674,2490.1,2490.0,0.28118]
[1730575378875,1.86655928,2490.1,2490.0,0.28118]
[1730575379077,4.49237828,2490.1,2490.0,0.28118]
[1730575379275,4.49261796,2490.1,2490.0,0.28118]
[1730575379573,4.49261007,2490.1,2490.0,0.28118]
[1730575379973,1.86655928,2490.1,2490.0,0.28118]
[1730575380775,2.14773928,2490.1,2490.0,0.28118]
[1730575380979,1.86655928,2490.1,2490.0,0.28118]
[1730575381478,1.86655928,2490.1,2490.0,0.90915234]
[1730575381788,1.86655928,2490.1,2490.0,0.28118]
[1730575382472,1.86655928,2490.1,2490.0,0.90915395]
[1730575383273,1.86655928,2490.1,2490.0,0.909147]
[1730575383778,1.86655928,2490.1,2490.0,0.90915179]
[1730575385179,1.86655928,2490.1,2490.0,0.90915139]
[1730575388882,1.86655928,2490.1,2490.0,0.90916491]
[1730575392484,1.86655928,2490.1,2490.0,0.28118]
[1730575392682,1.86655928,2490.1,2490.0,0.90915186]
[1730575396275,1.86655928,2490.1,2490.0,0.90915251]
[1730575396683,1.86655928,2490.1,2490.0,0.90914809]
[1730575397089,1.86655928,2490.1,2490.0,1.91388942]
[1730575397586,1.86655928,2490.1,2490.0,0.28118]
[1730575397882,1.86655928,2490.1,2490.0,0.90915945]
[1730575398088,1.86655928,2490.1,2490.0,1.91392457]
[1730575400087,1.86655928,2490.1,2490.0,1.91392842]
[1730575401184,5.01854716,2490.1,2490.0,1.91392842]
[1730575402289,5.01854716,2490.1,2490.0,3.16987048]
[1730575403285,5.54387848,2490.1,2490.0,3.29546495]
[1730575403486,1.86655928,2490.1,2490.0,3.29546495]
[1730575403707,5.54387848,2490.1,2490.0,0.28118]
[1730575403881,5.54387848,2490.1,2490.0,1.66270702]
[1730575404091,5.54387848,2490.1,2490.0,3.29542078]
[1730575406895,5.54387848,2490.1,2490.0,0.28118]
[1730575407096,5.54387848,2490.1,2490.0,3.29543849]
[1730575407485,5.54387848,2490.1,2490.0,0.28118]
[1730575407688,5.54387848,2490.1,2490.0,3.16984476]
[1730575407992,5.54387848,2490.1,2490.0,3.42103165]
[1730575412591,5.54387848,2490.1,2490.0,3.42103254]
[1730575414522,5.54387848,2490.1,2490.0,0.53236822]
[1730575414704,1.86655928,2490.1,2490.0,3.42102856]
[1730575415694,5.55438602,2490.1,2490.0,3.42102856]
[1730575417602,5.55438602,2490.1,2490.0,3.2954344]
[1730575418201,5.55438602,2490.1,2490.0,3.29543943]
[1730575422108,5.55438602,2490.1,2490.0,3.2954159]
[1730575423706,1.86655928,2490.1,2490.0,3.2954159]
[1730575424098,1.86655928,2490.1,2490.0,3.7486159]
[1730575424611,5.55438602,2490.1,2490.0,3.7486159]
[1730575425806,1.86655928,2490.1,2490.0,3.7486159]
[1730575426205,5.55438602,2490.1,2490.0,3.7486159]
[1730575429229,5.55438602,2490.1,2490.0,1.7391253]
[1730575429414,5.55438602,2490.1,2490.0,3.74857351]
[1730575429712,1.86655928,2490.1,2490.0,3.74859665]
[1730575429907,5.55438602,2490.1,2490.0,3.74859665]
[1730575430212,5.55438602,2490.1,2490.0,4.18319121]
[1730575431113,5.55438602,2490.1,2490.0,4.18319105]
[1730575433115,5.55438602,2490.1,2490.0,4.18319244]
[1730575435521,1.86655928,2490.1,2490.0,4.18319244]
[1730575435716,5.55438602,2490.1,2490.0,4.18319244]
[1730575435925,1.86655928,2490.1,2490.0,4.18319244]
[1730575436815,1.86655928,2490.1,2490.0,1.29456934]
[1730575437016,1.86655928,2490.1,2490.0,3.75612336]
[1730575437217,1.86655928,2490.1,2490.0,4.18313152]
[1730575437519,1.86655928,2490.1,2490.0,3.74853152]
[1730575438516,5.55438602,2490.1,2490.0,3.74853152]
[1730575438921,1.86655928,2490.1,2490.0,3.74853152]
[1730575439720,5.55438602,2490.1,2490.0,3.74853152]
[1730575439925,1.86655928,2490.1,2490.0,3.74853152]
[1730575440126,5.55438602,2490.1,2490.0,3.74853127]
[1730575440551,5.55438602,2490.1,2490.0,0.73438]
[1730575440832,5.55438602,2490.1,2490.0,3.74858473]
[1730575441530,1.86655928,2490.1,2490.0,3.74858473]
[1730575442920,5.55438602,2490.1,2490.0,3.74858473]
[1730575443328,5.55438602,2490.1,2490.0,3.74858453]
[1730575444128,1.86655928,2490.1,2490.0,3.74858453]
[1730575445721,5.55438602,2490.1,2490.0,3.74858453]
[1730575445917,1.86655928,2490.1,2490.0,3.74858453]
[1730575446526,5.55438602,2490.1,2490.0,3.74858453]
[1730575447126,1.86655928,2490.1,2490.0,0.73438]
[1730575447426,1.86655928,2490.1,2490.0,3.74856808]
[1730575447628,5.55438602,2490.1,2490.0,3.74856808]
[1730575449435,1.86655928,2490.1,2490.0,3.74856808]
[1730575449628,1.86655928,2490.1,2490.0,3.74856514]
[1730575450032,5.55438602,2490.1,2490.0,3.74856514]
[1730575450227,1.86655928,2490.1,2490.0,3.74856514]
[1730575450428,5.55438602,2490.1,2490.0,3.74856514]
[1730575451029,5.55438602,2490.1,2490.0,0.85997134]
[1730575451228,5.55438602,2490.1,2490.0,3.74857482]
[1730575452928,5.55438602,2490.1,2490.0,0.73438]
[1730575453128,5.55438602,2490.1,2490.0,3.74858682]
[1730575453436,1.86655928,2490.1,2490.0,3.74858682]
[1730575453633,1.86655928,2490.1,2490.0,3.94953287]
[1730575453634,5.02880746,2490.1,2490.0,3.94953287]
[1730575454532,3.16224818,2490.1,2490.0,7.96553287]
[1730575454731,3.16224818,2490.1,2490.0,7.96551728]
[1730575455156,5.13418602,2490.2,2490.0,4.79572241]
[1730575455326,5.13418602,2490.2,2490.0,0.73439]
[1730575455327,4.60849939,2490.1,2490.0,0.73439]
[1730575455527,4.60849939,2490.1,2490.0,7.96544921]
[1730575455732,1.44635928,2490.1,2490.0,7.96544921]
[1730575456440,4.60850112,2490.1,2490.0,7.96544921]
[1730575458539,4.60850112,2490.1,2490.0,5.07691945]
[1730575458738,4.60850112,2490.1,2490.0,7.96535936]
[1730575459040,4.60850112,2490.1,2490.0,7.96535942]
[1730575459337,4.60850112,2490.1,2490.0,7.76441816]
[1730575459633,4.60850112,2490.1,2490.0,7.96545479]
[1730575460334,4.60850112,2490.1,2490.0,7.96545223]
[1730575460536,4.60850112,2490.1,2490.0,7.76451266]
[1730575460929,4.60850112,2490.1,2490.0,7.96545333]
[1730575461336,4.60850112,2490.1,2490.0,7.76451266]
[1730575461928,4.60850112,2490.1,2490.0,3.74851266]
[1730575462237,4.60850112,2490.1,2490.0,7.96545353]
[1730575462437,4.60850112,2490.1,2490.0,3.74851205]
[1730575463040,4.60850112,2490.1,2490.0,7.76451205]
[1730575463235,4.60850112,2490.1,2490.0,3.74851205]
[1730575463434,4.60850112,2490.1,2490.0,7.76451205]
[1730575464039,4.60850112,2490.1,2490.0,3.74851205]
[1730575464237,4.60850112,2490.1,2490.0,3.94945501]
[1730575464441,4.60850112,2490.1,2490.0,3.74851205]
[1730575464643,4.60850112,2490.1,2490.0,7.76451205]
[1730575464937,4.60850112,2490.1,2490.0,3.74851205]
[1730575465142,4.60850112,2490.1,2490.0,7.76451205]
[1730575465338,4.60850112,2490.1,2490.0,7.76452801]
[1730575465543,4.60850112,2490.1,2490.0,7.96546927]
[1730575465744,4.60850112,2490.1,2490.0,7.76451262]
[1730575466061,4.60850112,2490.1,2490.0,0.7186846]
[1730575466062,10.39769856,2490.1,2490.0,0.7186846]
[1730575466247,15.46334769,2490.1,2489.5,0.62779839]
[1730575466541,4.60721976,2489.6,2489.5,0.28124]
[1730575466939,6.19664976,2489.6,2489.5,0.28124]
[1730575467338,5.91541976,2489.6,2489.5,0.28124]
[1730575467733,6.19664976,2489.6,2489.5,0.28124]
[1730575467936,0.28127,2489.3,2489.2,3.2078]
[1730575468134,3.17398856,2489.3,2489.2,3.2078]
[1730575468332,10.35244904,2489.3,2489.2,3.2078]
[1730575468541,7.19158856,2489.3,2489.2,3.2078]
[1730575469541,6.91031856,2489.3,2488.7,0.4474]
[1730575469736,6.91031856,2489.3,2488.8,0.28132]
[1730575469737,1.44635928,2488.9,2488.8,0.28132]
[1730575469938,4.0741387,2488.9,2488.8,0.28132]
[1730575470248,1.87615928,2488.9,2488.8,0.28132]
[1730575470448,4.5017053,2488.9,2488.8,0.28132]
[1730575471337,1.87615928,2488.9,2488.8,0.28132]
[1730575471740,2.15746928,2488.9,2488.8,0.28132]
[1730575471940,0.28133,2488.8,2488.6,3.2078]
[1730575472140,1.44635928,2488.7,2488.6,3.48914]
[1730575478243,1.44635928,2488.7,2488.6,0.28134]
[1730575478843,1.91085928,2488.8,2488.4,3.6688]
[1730575479048,1.44635928,2488.8,2488.7,0.28134]
[1730575479247,1.44635928,2488.8,2488.7,3.48914]
[1730575480744,1.44635928,2488.8,2488.7,0.28134]
[1730575482346,1.44635928,2488.8,2488.7,3.48914]
[1730575486048,1.44635928,2488.8,2488.7,0.28134]
[1730575487151,1.44635928,2489.0,2488.9,0.28131]
[1730575499756,1.72765928,2489.0,2488.9,0.28131]
[1730575499962,1.44635928,2489.0,2488.9,0.28131]
[1730575500457,1.90215928,2489.0,2488.9,0.28131]
[1730575508563,4.5277053,2489.0,2488.9,0.28131]
[1730575510565,1.90215928,2489.0,2488.9,0.28131]
[1730575511177,4.52862471,2489.0,2488.9,0.88926219]
[1730575511372,1.90215928,2489.0,2488.9,0.88926219]
[1730575511676,1.90215928,2489.0,2488.9,0.88973761]
[1730575513174,1.90215928,2489.0,2488.9,1.86362484]
[1730575513372,1.90215928,2489.0,2488.9,1.98926903]
[1730575513676,9.36191976,2489.0,2488.9,0.88973761]
[1730575513871,6.20105928,2489.0,2488.9,0.88973761]
[1730575514979,6.20105928,2489.0,2488.9,0.60842761]
[1730575515282,12.81522984,2489.0,2488.8,0.28132]
[1730575515473,8.62030938,2488.9,2488.8,0.28132]
[1730575515670,5.74527928,2488.9,2488.8,0.28132]
[1730575517874,0.28134,2488.7,2488.6,0.28134]
[1730575518069,4.88392111,2488.7,2488.6,0.28134]
[1730575518474,5.33422111,2488.7,2488.6,0.28134]
[1730575518880,5.05288111,2488.7,2488.6,0.28134]
[1730575519377,2.17799928,2488.7,2488.6,0.28134]
[1730575519675,5.33422111,2488.7,2488.6,0.28134]
[1730575519873,2.17799928,2488.7,2488.6,0.28134]
[1730575520266,1.89665928,2488.7,2488.6,0.28134]
[1730575520881,2.17799928,2488.7,2488.6,0.28134]
[1730575525276,1.89665928,2488.7,2488.6,0.28134]
[1730575525871,1.44635928,2488.8,2488.7,0.28134]
[1730575529076,1.44635928,2488.8,2488.7,0.8852812]
[1730575529680,1.44635928,2488.8,2488.7,1.4892101]
[1730575532984,1.44635928,2488.8,2488.7,0.8852812]
[1730575533179,1.44635928,2488.8,2488.7,1.48919819]
[1730575536383,1.44635928,2488.8,2488.7,1.48928076]
[1730575539687,1.44635928,2488.8,2488.7,0.88533956]
[1730575540289,1.44635928,2488.8,2488.7,0.88544662]
[1730575544485,1.44635928,2488.8,2488.7,0.88568148]
[1730575544991,1.44635928,2488.8,2488.7,1.85262322]
[1730575545186,1.44635928,2488.8,2488.7,1.85271172]
[1730575546286,4.60258111,2488.8,2488.7,1.85271172]
[1730575546793,1.44635928,2488.8,2488.7,1.85271172]
[1730575547185,4.60258111,2488.8,2488.7,1.85271172]
[1730575547680,4.60258111,2488.8,2488.7,0.88568148]
[1730575547888,4.60258111,2488.8,2488.7,0.28134]
[1730575548093,4.60258111,2488.8,2488.7,1.85283408]
[1730575550385,4.60258111,2488.8,2488.7,0.88576518]
[1730575551689,4.60258111,2488.8,2488.7,0.88581801]
[1730575552395,4.60258111,2488.8,2488.7,1.8530139]
[1730575553396,4.60258111,2488.8,2488.7,1.97867339]
[1730575553589,4.88391111,2488.8,2488.7,0.88581801]
[1730575553897,5.41535984,2488.8,2488.7,0.88581801]
[1730575555490,5.41535984,2488.8,2488.7,0.28134]
[1730575556094,5.41535984,2488.8,2488.7,0.88589723]
[1730575556894,5.13402984,2488.8,2488.7,0.88589723]
[1730575559201,5.41535984,2488.8,2488.7,0.88589723]
[1730575560594,4.60863549,2488.8,2488.7,1.97917401]
[1730575560797,4.60861941,2488.8,2488.7,1.97917401]
[1730575560993,1.44635928,2488.8,2488.7,1.97917401]
[1730575561699,1.44635928,2488.8,2488.7,0.40699816]
[1730575562002,1.44635928,2488.8,2488.7,1.97938737]
[1730575562293,1.44635928,2488.8,2488.7,1.85373171]
[1730575563397,1.44635928,2488.8,2488.7,1.97939157]
[1730575565093,1.44635928,2488.8,2488.7,0.28134]
[1730575565293,1.44635928,2488.8,2488.7,1.97943317]
[1730575565495,1.44635928,2488.8,2488.7,0.28134]
[1730575565695,1.44635928,2488.8,2488.7,1.97950026]
[1730575570898,1.72768928,2488.8,2488.7,1.97950026]
[1730575571298,4.89023824,2488.8,2488.7,1.69816026]
[1730575572093,4.89023824,2488.8,2488.7,0.7304688]
[1730575572303,4.89023824,2488.8,2488.7,0.73047556]
[1730575573201,4.89023824,2488.8,2488.7,0.60480716]
[1730575573399,5.94234841,2488.8,2488.7,0.60480716]
[1730575574303,1.72768928,2488.8,2488.7,0.60480716]
[1730575574505,5.94234841,2488.8,2488.7,0.60480716]
[1730575575000,1.72768928,2488.8,2488.7,0.60480716]
[1730575575733,1.72768928,2488.8,2488.6,0.28135]
[1730575576001,6.29723884,2488.7,2488.6,0.28135]
[1730575576390,6.29723884,2488.7,2488.6,0.88613214]
[1730575579504,6.29723884,2488.7,2488.6,0.886046]
[1730575580892,6.29723884,2488.7,2488.6,0.604696]
[1730575581502,6.29723884,2488.7,2488.6,0.886046]
[1730575582804,2.60719928,2488.7,2488.6,0.886046]
[1730575583000,6.29723884,2488.7,2488.6,0.28135]
[1730575583209,6.29723884,2488.7,2488.6,0.88601032]
[1730575583397,2.60719928,2488.7,2488.6,0.88601032]
[1730575586005,5.76799345,2488.7,2488.6,0.88601032]
[1730575586203,2.60719928,2488.7,2488.6,0.88601032]
[1730575586505,2.60719928,2488.7,2488.6,0.88600439]
[1730575586902,2.60719928,2488.7,2488.6,0.28135]
[1730575587206,2.60719928,2488.7,2488.6,0.88600636]
[1730575587707,2.60719928,2488.7,2488.6,0.60465636]
[1730575588302,2.60719928,2488.7,2488.6,0.88600636]
[1730575589806,2.60719928,2488.7,2488.6,0.28135]
[1730575591802,2.60719928,2488.7,2488.6,0.8860198]
[1730575592804,2.60719928,2488.7,2488.6,0.28135]
[1730575594005,2.32585928,2488.7,2488.6,0.28135]
[1730575594311,1.44635928,2488.7,2488.6,0.28135]
[1730575594813,4.6071658,2488.7,2488.6,0.28135]
[1730575595012,4.8885058,2488.7,2488.6,0.28135]
[1730575595311,1.72769928,2488.7,2488.6,0.28135]
[1730575595813,1.72769928,2488.7,2488.6,1.8536207]
[1730575596006,1.44635928,2488.7,2488.6,1.8536207]
[1730575596606,4.60767141,2488.7,2488.6,1.97928416]
[1730575597305,4.60767141,2488.7,2488.6,1.97929045]
[1730575597807,1.44635928,2488.7,2488.6,5.18709045]
[1730575598009,3.16131213,2488.9,2488.6,10.13352301]
[1730575598203,2.6343709,2488.8,2488.7,4.26890552]
[1730575598405,2.6343709,2488.8,2488.7,4.71360552]
[1730575598610,2.6343709,2488.8,2488.7,8.73200552]
[1730575599314,2.6343709,2488.9,2488.8,0.28133]
[1730575599506,2.6343709,2488.9,2488.8,3.38969552]
[1730575599704,2.6343709,2489.0,2488.8,7.12596552]
[1730575599905,2.6343709,2488.9,2488.8,4.29893]
[1730575600111,2.6343709,2488.9,2488.8,7.40564079]
[1730575600411,1.44635928,2489.1,2488.9,0.28131]
[1730575600412,2.6343709,2489.0,2488.9,0.28131]
[1730575600614,2.6343709,2489.0,2488.9,1.97828174]
[1730575600803,2.6343709,2489.0,2488.9,5.99545948]
[1730575601206,2.6343709,2489.0,2488.9,5.99543955]
[1730575602812,2.6343709,2489.0,2488.9,5.86980286]
[1730575603014,2.6343709,2489.0,2488.9,5.99484064]
[1730575603208,2.6343709,2489.0,2488.9,5.8691988]
[1730575603616,2.6343709,2489.0,2488.9,5.99483951]
[1730575604125,2.6343709,2489.0,2488.9,5.8691988]
[1730575606312,2.6343709,2489.0,2488.9,4.90286723]
[1730575607419,1.44635928,2489.1,2488.9,4.90286723]
[1730575607420,4.08073018,2489.1,2489.0,0.2813]
[1730575607718,4.08073018,2489.1,2489.0,0.88525723]
[1730575608020,4.07685493,2489.1,2489.0,0.88525723]
[1730575608227,4.07685493,2489.1,2489.0,0.2813]
[1730575608518,4.07685493,2489.1,2489.0,0.88485276]
[1730575611917,4.07685493,2489.1,2489.0,0.8847129]
[1730575612121,4.07685493,2489.1,2489.0,0.2813]
[1730575612924,4.07685493,2489.1,2489.0,0.88466822]
[1730575613122,4.07685493,2489.1,2489.0,0.2813]
[1730575613522,4.07685493,2489.1,2489.0,0.746]
[1730575613523,4.51225493,2489.1,2489.0,0.746]
[1730575620525,1.88175928,2489.1,2489.0,0.746]
[1730575620728,4.51225493,2489.1,2489.0,0.746]
[1730575623226,4.93715493,2489.1,2489.0,0.746]
[1730575623822,5.36315493,2489.1,2489.0,0.746]
[1730575626824,0.28131,2489.0,2488.9,0.28131]
[1730575627029,4.35816493,2489.0,2488.9,0.28131]
[1730575627823,4.35816493,2489.0,2488.9,0.88469508]
[1730575627824,4.07685493,2489.0,2488.9,0.88469508]
[1730575628027,5.36315493,2489.1,2489.0,0.2813]
[1730575629233,5.36315493,2489.1,2489.0,0.88474671]
[1730575630128,5.36315493,2489.1,2489.0,0.88479567]
[1730575631034,5.64444493,2489.1,2489.0,0.88479567]
[1730575632331,5.64444493,2489.1,2489.0,0.88490829]
[1730575633144,3.01394928,2489.1,2489.0,0.88490829]
[1730575633635,5.64310497,2489.1,2489.0,0.88490829]
[1730575633826,3.01394928,2489.1,2489.0,0.88490829]
[1730575635935,3.01394928,2489.1,2489.0,0.88519014]
[1730575640941,6.17526141,2489.1,2489.0,0.88519014]
[1730575641139,3.01394928,2489.1,2489.0,1.85237043]
[1730575641437,9.38306141,2489.1,2489.0,0.60389014]
[1730575641641,6.22174928,2489.1,2489.0,0.60389014]
[1730575641836,9.91178884,2489.1,2489.0,0.60389014]
[1730575642038,0.28133,2488.8,2488.7,0.28133]
[1730575642237,4.88666587,2488.8,2488.7,1.9793778]
[1730575642844,5.34066587,2488.8,2488.7,1.97910926]
[1730575643049,5.34066587,2488.8,2488.7,0.40699111]
[1730575643546,5.34066587,2488.8,2488.7,1.97923953]
[1730575645243,5.34066587,2488.8,2488.7,1.85357842]
[1730575645446,5.34066587,2488.8,2488.7,1.85307647]
[1730575646244,5.34066587,2488.8,2488.7,0.28133]
[1730575646439,5.34066587,2488.8,2488.7,1.85306616]
[1730575646644,5.34066587,2488.8,2488.7,0.88584391]
[1730575646840,5.34066587,2488.8,2488.7,1.85295881]
[1730575647243,2.18168928,2488.8,2488.7,1.85295881]
[1730575647646,2.18168928,2488.8,2488.7,0.88584391]
[1730575649745,2.18168928,2488.8,2488.7,0.28133]
[1730575650251,2.18168928,2488.8,2488.7,0.88561328]
[1730575652752,2.18168928,2488.8,2488.7,0.28133]
[1730575652943,2.18168928,2488.8,2488.7,0.8855007]
[1730575652944,1.90035928,2488.8,2488.7,0.8855007]
[1730575653645,2.18168928,2488.8,2488.7,0.88547117]
[1730575653842,2.18168928,2488.8,2488.7,0.28133]
[1730575654148,2.18168928,2488.8,2488.7,0.88547029]
[1730575654445,1.90035928,2488.8,2488.7,0.88547029]
[1730575660746,1.90035928,2488.8,2488.7,0.88535503]
[1730575663656,3.15897659,2488.9,2488.8,0.28133]
[1730575663857,2.63120435,2488.9,2488.8,2.73505637]
[1730575664158,2.63120435,2488.9,2488.8,10.0861041]
[1730575664361,2.63120435,2488.9,2488.8,9.8047741]
[1730575664548,2.63120435,2488.9,2488.8,10.0861041]
[1730575664752,2.63120435,2488.9,2488.8,10.08609813]
[1730575665158,2.63120435,2489.0,2488.9,0.28131]
[1730575665358,2.63120435,2489.0,2488.9,2.40067813]
[1730575665559,1.44635928,2489.1,2489.0,0.2813]
[1730575665863,1.44635928,2489.1,2489.0,0.88532503]
[1730575668159,1.44635928,2489.1,2489.0,0.2813]
[1730575668464,1.44635928,2489.1,2489.0,0.88530832]
[1730575669158,1.72764928,2489.1,2489.0,0.88530832]
[1730575669566,4.88662587,2489.1,2489.0,0.88530832]
[1730575669763,1.72764928,2489.1,2489.0,0.88530832]
[1730575670061,4.60533587,2489.1,2489.0,0.88530832]
[1730575670462,4.88662587,2489.1,2489.0,0.88530832]
[1730575672875,1.44635928,2489.1,2489.0,0.88530832]
[1730575673059,4.60533587,2489.1,2489.0,0.88530832]
[1730575675567,4.60533587,2489.1,2489.0,0.88541879]
[1730575676866,4.60533587,2489.1,2489.0,0.60411879]
[1730575677063,4.88662587,2489.1,2489.0,0.88541879]
[1730575679270,4.88662587,2489.1,2489.0,0.88548765]
[1730575682373,1.72764928,2489.1,2489.0,0.88548765]
[1730575682570,4.8864509,2489.1,2489.0,0.88548765]
[1730575685576,4.8864509,2489.1,2489.0,0.88558857]
[1730575685793,4.8864509,2489.1,2489.0,0.2813]
[1730575686082,4.8864509,2489.1,2489.0,0.88558671]
[1730575687876,4.8864509,2489.1,2489.0,0.88562247]
[1730575689190,4.8864509,2489.1,2489.0,0.2813]
[1730575689376,4.8864509,2489.1,2489.0,1.48995307]
[1730575692486,4.6051609,2489.1,2489.0,1.48995307]
[1730575692979,4.6051609,2489.1,2489.0,1.48998483]
[1730575693187,1.72764928,2489.1,2489.0,0.88565877]
[1730575693394,4.88764584,2489.1,2489.0,0.88565877]
[1730575694393,1.72764928,2489.1,2489.0,0.88565877]
[1730575695193,4.8868153,2489.1,2489.0,0.88565877]
[1730575695498,4.88668123,2489.1,2489.0,0.88565877]
[1730575696491,1.72764928,2489.1,2489.0,0.88565877]
[1730575696693,4.88680925,2489.1,2489.0,0.2813]
[1730575696898,4.88680925,2489.1,2489.0,0.88572271]
[1730575697089,1.72764928,2489.1,2489.0,0.88572271]
[1730575701700,2.18634928,2489.1,2489.0,0.88572271]
[1730575702802,1.90505928,2489.1,2489.0,0.88572271]
[1730575703195,1.90505928,2489.1,2489.0,1.85305522]
[1730575703196,1.44635928,2489.1,2489.0,1.85305522]
[1730575703394,1.44635928,2489.1,2489.0,0.88572271]
[1730575703801,1.44635928,2489.1,2489.0,0.88592851]
[1730575704203,1.44635928,2489.1,2489.0,1.85338327]
[1730575704504,1.44635928,2489.1,2489.0,0.88592851]
[1730575705407,1.44635928,2489.1,2489.0,1.85345156]
[1730575705601,1.44635928,2489.1,2489.0,1.85351772]
[1730575705900,5.13183197,2489.1,2489.0,1.85351772]
[1730575706209,1.44635928,2489.1,2489.0,1.85351772]
[1730575706399,1.44635928,2489.1,2489.0,0.88599912]
[1730575706400,5.13183197,2489.1,2489.0,0.88599912]
[1730575706701,5.13183197,2489.1,2489.0,1.85359216]
[1730575706702,1.44635928,2489.1,2489.0,1.85359216]
[1730575707317,5.13183197,2489.1,2489.0,1.97923764]
[1730575707608,5.13183197,2489.1,2489.0,1.97939844]
[1730575708107,1.44635928,2489.1,2489.0,1.97939844]
[1730575708308,5.13183197,2489.1,2489.0,1.97939804]
[1730575709498,5.13183197,2489.1,2489.0,1.9793995]
[1730575710997,5.13183197,2489.1,2489.0,1.9798409]
[1730575712894,5.13183197,2489.1,2489.0,0.2813]
[1730575713104,5.13183197,2489.1,2489.0,1.97996227]
[1730575713301,5.41312197,2489.1,2489.0,1.97996227]
[1730575713503,5.13183197,2489.1,2489.0,1.97996227]
[1730575714602,5.13183197,2489.1,2489.0,1.9801152]
[1730575715711,5.41312197,2489.1,2489.0,1.9801152]
[1730575715906,5.13183197,2489.1,2489.0,1.9801152]
[1730575718517,5.13183197,2489.1,2489.0,1.98011629]
[1730575718816,5.41312197,2489.1,2489.0,1.98011629]
[1730575719711,5.13183197,2489.1,2489.0,1.98011629]
[1730575720111,5.13183197,2489.1,2489.0,1.98019348]
[1730575721606,5.41312197,2489.1,2489.0,1.98019348]
[1730575721809,5.41312197,2489.1,2489.0,1.37512072]
[1730575722010,5.41312197,2489.1,2489.0,1.98022876]
[1730575722211,5.13183197,2489.1,2489.0,1.98022876]
[1730575722408,3.68547269,2489.1,2489.0,1.98022876]
[1730575725118,5.57763197,2489.2,2489.0,1.69892876]
[1730575725322,5.57763197,2489.2,2488.9,0.4233]
[1730575725323,5.57763197,2489.2,2489.1,0.28129]
[1730575725527,5.57763197,2489.2,2489.1,1.98007983]
[1730575726025,5.85891197,2489.2,2489.1,1.98007983]
[1730575728416,5.57763197,2489.2,2489.1,1.98007983]
[1730575728818,5.57763197,2489.2,2489.1,1.85443656]
[1730575729025,5.57763197,2489.2,2489.1,1.98008065]
[1730575729220,5.57763197,2489.2,2489.1,1.97992882]
[1730575729719,5.85891197,2489.2,2489.1,1.97992882]
[1730575730525,5.85891197,2489.2,2489.1,1.85428473]
[1730575730713,5.85891197,2489.2,2489.1,0.28129]
[1730575730919,5.85891197,2489.2,2489.1,1.97988994]
[1730575731119,5.85891197,2489.2,2489.1,1.85424471]
[1730575732413,5.85891197,2489.2,2489.1,1.97984602]
[1730575732617,5.85891197,2489.2,2489.1,1.85420111]
[1730575734226,5.86106627,2489.2,2489.1,1.85420111]
[1730575739725,5.86106627,2489.2,2489.1,1.85415834]
[1730575739943,5.86106627,2489.2,2489.1,0.28129]
[1730575740226,5.86106627,2489.2,2489.1,1.85415949]
[1730575741230,5.86106627,2489.2,2489.1,1.85416612]
[1730575742022,5.86106627,2489.2,2489.1,1.97981034]
[1730575742222,5.86106627,2489.2,2489.1,1.85416612]
[1730575742626,5.86106627,2489.2,2489.1,1.97981054]
[1730575743731,5.86106627,2489.2,2489.1,1.97980841]
[1730575744325,5.86106627,2489.2,2489.1,1.97980866]
[1730575745326,5.86106627,2489.2,2489.1,1.85416612]
[1730575747920,2.17343928,2489.2,2489.1,1.85416612]
[1730575748121,2.17343928,2489.2,2489.1,0.88624235]
[1730575748330,2.17343928,2489.2,2489.1,1.85418173]
[1730575748635,2.17343928,2489.2,2489.1,1.85416295]
[1730575749130,2.17343928,2489.2,2489.1,0.88624235]
[1730575749332,2.17343928,2489.2,2489.1,1.85418147]
[1730575749530,5.57868169,2489.2,2489.1,1.85418147]
[1730575749731,5.57868169,2489.2,2489.1,1.85416309]
[1730575749932,5.57868169,2489.2,2489.1,1.97980523]
[1730575750127,4.13232241,2489.2,2489.1,1.97980523]
[1730575750832,4.41360241,2489.2,2489.1,1.97980523]
[1730575751131,4.41360241,2489.2,2489.1,1.85416309]
[1730575753822,4.41360241,2489.2,2489.1,1.85418267]
[1730575756338,4.41360241,2489.2,2489.1,1.57289267]
[1730575756534,4.41360241,2489.2,2488.6,1.05473852]
[1730575756535,0.28134,2488.7,2488.6,0.28134]
[1730575756737,0.28134,2488.7,2488.6,0.40700173]
[1730575757243,1.15554,2488.7,2488.6,0.40700542]
[1730575757537,4.31203422,2488.7,2488.6,0.40700542]
[1730575757739,4.3121094,2488.7,2488.6,0.40700542]
[1730575758530,4.3121094,2488.7,2488.6,0.28134]
[1730575761438,1.15554,2488.7,2488.6,0.28134]
[1730575763135,0.8742,2488.7,2488.6,0.28134]
[1730575763644,4.88425868,2488.8,2488.7,0.28134]
[1730575763645,3.1565694,2488.8,2488.7,0.28134]
[1730575763847,2.62906327,2488.8,2488.7,4.42539318]
[1730575764140,2.62906327,2488.8,2488.7,4.87659318]
[1730575764537,2.62906327,2488.8,2488.7,4.87658829]
[1730575764836,2.62906327,2488.9,2488.8,0.28133]